fUST/lending_fUST_20250819
["ID","MTS","AMOUNT","RATE_DAILY","PERIOD"]
[380098842,1755541840954,-100000.0,0.00019329,2]
[380098843,1755541840963,-500.0,0.00019373,2]
[380098844,1755541840973,-500.0,0.00019373,2]
[380098845,1755541840982,-531.10404114,0.00019381,2]
[380098846,1755541840991,-480.0,0.00019452,2]
[380098847,1755541841001,-480.0,0.00019452,2]
[380098848,1755541841010,-480.0,0.00019452,2]
[380098849,1755541841020,-480.0,0.00019452,2]
[380098850,1755541841029,-480.0,0.00019452,2]
[380098851,1755541841039,-460.0,0.00019452,2]
[380098852,1755541841048,-480.0,0.00019452,2]
[380098853,1755541841057,-612.5957836,0.00019452,2]
[380098854,1755541841067,-480.0,0.00019452,2]
[380098855,1755541841076,-480.0,0.00019452,2]
[380098856,1755541841085,-480.0,0.00019452,2]
[380098857,1755541841094,-480.0,0.00019452,2]
[380098858,1755541841103,-480.0,0.00019452,2]
[380098859,1755541841117,-480.0,0.00019452,2]
[380098860,1755541841126,-480.0,0.00019452,2]
[380098861,1755541841137,-480.0,0.00019452,2]
[380098862,1755541841146,-480.0,0.00019452,2]
[380098863,1755541841156,-480.0,0.00019452,2]
[380098864,1755541841165,-480.0,0.00019452,2]
[380098865,1755541841174,-480.0,0.00019452,2]
[380098866,1755541841185,-480.0,0.00019452,2]
[380098867,1755541841195,-198.73,0.00019452,2]
[380098868,1755541841205,-236.22015051,0.00019452,2]
[380098869,1755541841215,-480.0,0.00019452,2]
[380098870,1755541841224,-480.0,0.00019452,2]
[380098871,1755541841234,-301.0409449,0.00019452,2]
[380098872,1755541841243,-522.5,0.00019452,2]
[380098873,1755541841253,-480.0,0.00019452,2]
[380098874,1755541841263,-480.0,0.00019452,2]
[380098875,1755541841272,-480.0,0.00019452,2]
[380098876,1755541841282,-480.0,0.00019452,2]
[380098877,1755541841292,-480.0,0.00019452,2]
[380098878,1755541841304,-480.0,0.00019452,2]
[380098879,1755541841314,-480.0,0.00019452,2]
[380098880,1755541841324,-480.0,0.00019452,2]
[380098881,1755541841334,-480.0,0.00019452,2]
[380098882,1755541841344,-480.0,0.00019452,2]
[380098883,1755541841354,-480.0,0.00019452,2]
[380098884,1755541841364,-480.0,0.00019452,2]
[380098885,1755541841373,-480.0,0.00019452,2]
[380098886,1755541841382,-480.0,0.00019452,2]
[380098887,1755541841391,-480.0,0.00019452,2]
[380098888,1755541841401,-480.0,0.00019452,2]
[380098889,1755541841413,-480.0,0.00019452,2]
[380098890,1755541841422,-480.0,0.00019452,2]
[380098891,1755541841431,-480.0,0.00019452,2]
[380098892,1755541841441,-480.0,0.00019452,2]
[380098893,1755541841451,-480.0,0.00019452,2]
[380098894,1755541841459,-480.0,0.00019452,2]
[380098895,1755541841468,-480.0,0.00019452,2]
[380098896,1755541841478,-357.81,0.00019452,2]
[380098897,1755541841487,-504.05,0.00019452,2]
[380098898,1755541841497,-480.0,0.00019452,2]
[380098899,1755541841507,-480.0,0.00019452,2]
[380098900,1755541841516,-480.0,0.00019452,2]
[380098901,1755541841525,-480.0,0.00019452,2]
[380098902,1755541841535,-480.0,0.00019452,2]
[380098903,1755541841544,-480.0,0.00019452,2]
[380098904,1755541841554,-480.0,0.00019452,2]
[380098905,1755541841564,-480.0,0.00019452,2]
[380098906,1755541841573,-480.0,0.00019452,2]
[380098907,1755541841582,-480.0,0.00019452,2]
[380098908,1755541841592,-480.0,0.00019452,2]
[380098909,1755541841601,-480.0,0.00019452,2]
[380098910,1755541841612,-570.96,0.00019452,2]
[380098911,1755541841621,-480.0,0.00019452,2]
[380098912,1755541841631,-480.0,0.00019452,2]
[380098913,1755541841641,-480.0,0.00019452,2]
[380098914,1755541841650,-480.0,0.00019452,2]
[380098915,1755541841659,-480.0,0.00019452,2]
[380098916,1755541841668,-480.0,0.00019452,2]
[380098917,1755541841678,-572.27,0.00019452,2]
[380098918,1755541841687,-480.0,0.00019452,2]
[380098919,1755541841698,-480.0,0.00019452,2]
[380098920,1755541841707,-480.0,0.00019452,2]
[380098921,1755541841717,-480.0,0.00019452,2]
[380098922,1755541841726,-480.0,0.00019452,2]
[380098923,1755541841736,-480.0,0.00019452,2]
[380098924,1755541841745,-480.0,0.00019452,2]
[380098925,1755541841755,-480.0,0.00019452,2]
[380098926,1755541841764,-480.0,0.00019452,2]
[380098927,1755541841773,-480.0,0.00019452,2]
[380098928,1755541841783,-480.0,0.00019452,2]
[380098929,1755541841792,-480.0,0.00019452,2]
[380098930,1755541841802,-480.0,0.00019452,2]
[380098931,1755541841812,-480.0,0.00019452,2]
[380098932,1755541841821,-652.96,0.00019452,2]
[380098933,1755541841830,-480.0,0.00019452,2]
[380098934,1755541841840,-480.0,0.00019452,2]
[380098935,1755541841849,-556.64,0.00019452,2]
[380098936,1755541841859,-480.0,0.00019452,2]
[380098937,1755541841868,-419.03655572,0.00019452,2]
[380098938,1755541841878,-480.0,0.00019452,2]
[380098939,1755541841887,-480.0,0.00019452,2]
[380098940,1755541841897,-480.0,0.00019452,2]
[380098941,1755541841906,-480.0,0.00019452,2]
[380098942,1755541841917,-480.0,0.00019452,2]
[380098943,1755541841927,-480.0,0.00019452,2]
[380098944,1755541841936,-480.0,0.00019452,2]
[380098945,1755541841946,-8394.39,0.00019452,2]
[380098946,1755541841955,-480.0,0.00019452,2]
[380098947,1755541841964,-480.0,0.00019452,2]
[380098948,1755541841975,-480.0,0.00019452,2]
[380098949,1755541841987,-480.0,0.00019452,2]
[380098950,1755541842000,-480.0,0.00019452,2]
[380098951,1755541842012,-480.0,0.00019452,2]
[380098952,1755541842025,-480.0,0.00019452,2]
[380098953,1755541842036,-480.0,0.00019452,2]
[380098954,1755541842047,-561.9,0.00019452,2]
[380098955,1755541842057,-329.74349556,0.00019452,2]
[380098956,1755541842070,-200.0,0.0001956,20]
[380098957,1755541842081,-200.0,0.0001956,20]
[380098958,1755541842093,-200.0,0.0001956,20]
[380098959,1755541842106,-200.0,0.0001956,20]
[380098960,1755541842119,-200.0,0.0001956,20]
[380098961,1755541842132,-200.0,0.0001956,20]
[380098962,1755541842143,-200.0,0.0001956,20]
[380098963,1755541842156,-200.0,0.0001956,20]
[380098964,1755541842168,-200.0,0.0001956,20]
[380098965,1755541842180,-200.0,0.0001956,20]
[380098966,1755541842195,-600.0,0.00019561,20]
[380098967,1755541842206,-1000.0,0.00019721,2]
[380098968,1755541842218,-1000.0,0.00019721,2]
[380098970,1755541842230,-1000.0,0.00019721,2]
[380098971,1755541842242,-480.0,0.00019726,2]
[380098972,1755541842254,-480.0,0.00019726,2]
[380098973,1755541842265,-480.0,0.00019726,2]
[380098974,1755541842277,-185.88,0.00019726,2]
[380098975,1755541842296,-436.41,0.00019726,2]
[380098978,1755541842307,-480.0,0.00019726,2]
[380098980,1755541842319,-480.0,0.00019726,2]
[380098981,1755541842329,-480.0,0.00019726,2]
[380098982,1755541842339,-480.0,0.00019726,2]
[380098983,1755541842350,-265.72,0.00019726,2]
[380098984,1755541842361,-480.0,0.00019726,2]
[380098985,1755541842371,-480.0,0.00019726,2]
[380098986,1755541842382,-412.02,0.00019726,2]
[380098987,1755541842394,-476.64,0.00019726,2]
[380098988,1755541842405,-480.0,0.00019726,2]
[380098989,1755541842416,-480.0,0.00019726,2]
[380098990,1755541842429,-480.0,0.00019726,2]
[380098991,1755541842440,-480.0,0.00019726,2]
[380098992,1755541842452,-480.0,0.00019726,2]
[380098993,1755541842466,-286.49670487,0.00019726,2]
[380098994,1755541842484,-480.0,0.00019726,2]
[380098995,1755541842496,-480.0,0.00019726,2]
[380098996,1755541842508,-480.0,0.00019726,2]
[380098997,1755541842519,-480.0,0.00019726,2]
[380098998,1755541842529,-480.0,0.00019726,2]
[380098999,1755541842539,-279.91452569,0.00019726,2]
[380099000,1755541842550,-480.0,0.00019726,2]
[380099001,1755541842561,-480.0,0.00019726,2]
[380099002,1755541842573,-175.05,0.00019726,2]
[380099003,1755541842586,-480.0,0.00019726,2]
[380099004,1755541842599,-504.05,0.00019726,2]
[380099005,1755541842611,-480.0,0.00019726,2]
[380099006,1755541842621,-480.0,0.00019726,2]
[380099008,1755541842631,-480.0,0.00019726,2]
[380099010,1755541842642,-480.0,0.00019726,2]
[380099012,1755541842653,-480.0,0.00019726,2]
[380099013,1755541842665,-480.0,0.00019726,2]
[380099014,1755541842677,-538.49,0.00019726,2]
[380099015,1755541842687,-480.0,0.00019726,2]
[380099016,1755541842698,-480.0,0.00019726,2]
[380099017,1755541842709,-570.96,0.00019726,2]
[380099018,1755541842719,-480.0,0.00019726,2]
[380099019,1755541842729,-480.0,0.00019726,2]
[380099020,1755541842740,-480.0,0.00019726,2]
[380099021,1755541842751,-188.13,0.00019726,2]
[380099022,1755541842762,-572.27,0.00019726,2]
[380099024,1755541842772,-480.0,0.00019726,2]
[380099026,1755541842783,-480.0,0.00019726,2]
[380099027,1755541842794,-480.0,0.00019726,2]
[380099028,1755541842804,-480.0,0.00019726,2]
[380099029,1755541842815,-480.0,0.00019726,2]
[380099030,1755541842826,-215.81055902,0.00019726,2]
[380099031,1755541842836,-480.0,0.00019726,2]
[380099032,1755541842847,-391.44,0.00019726,2]
[380099033,1755541842858,-480.0,0.00019726,2]
[380099034,1755541842870,-480.0,0.00019726,2]
[380099035,1755541842881,-480.0,0.00019726,2]
[380099036,1755541842892,-652.96,0.00019726,2]
[380099037,1755541842903,-480.0,0.00019726,2]
[380099038,1755541842914,-480.0,0.00019726,2]
[380099039,1755541842925,-480.0,0.00019726,2]
[380099040,1755541842935,-480.0,0.00019726,2]
[380099041,1755541842946,-480.0,0.00019726,2]
[380099042,1755541842957,-491.1278582,0.00019726,2]
[380099043,1755541842967,-480.0,0.00019726,2]
[380099044,1755541842978,-480.0,0.00019726,2]
[380099045,1755541842989,-480.0,0.00019726,2]
[380099046,1755541843000,-8394.39,0.00019726,2]
[380099047,1755541843011,-480.0,0.00019726,2]
[380099048,1755541843023,-480.0,0.00019726,2]
[380099049,1755541843033,-480.0,0.00019726,2]
[380099050,1755541843043,-480.0,0.00019726,2]
[380099051,1755541843054,-480.0,0.00019726,2]
[380099052,1755541843065,-480.0,0.00019726,2]
[380099053,1755541843076,-480.0,0.00019726,2]
[380099054,1755541843087,-428.98590075,0.00019807,2]
[380099055,1755541843097,-162.713526,0.00019863,2]
[380099056,1755541843108,-232.18122251,0.00019926,2]
[380099057,1755541843122,-160.0,0.00019926,2]
[380099058,1755541843133,-160.0,0.00019926,2]
[380099059,1755541843145,-843.81736472,0.00019926,2]
[380099060,1755541843156,-160.0,0.00019926,2]
[380099061,1755541843167,-12683.78573522,0.00019926,2]
[380099062,1755541843177,-160.0,0.00019926,2]
[380099063,1755541843188,-160.0,0.00019926,2]
[380099064,1755541843199,-417.15472785,0.00019926,2]
[380099065,1755541843210,-528.58062739,0.00019926,2]
[380099066,1755541843221,-215.75323784,0.00019926,2]
[380099067,1755541843232,-160.0,0.00019926,2]
[380099068,1755541843242,-375.82681177,0.00019926,2]
[380099069,1755541843253,-216.85420361,0.00019926,2]
[380099070,1755541843263,-199.41,0.00019946,2]
[380099071,1755541843275,-500.0,0.00019973,2]
[380099072,1755541843285,-480.0,0.0002,2]
[380099073,1755541843295,-480.0,0.0002,2]
[380099074,1755541843306,-516.48603326,0.0002,2]
[380099075,1755541843317,-480.0,0.0002,2]
[380099076,1755541843327,-480.0,0.0002,2]
[380099077,1755541843338,-480.0,0.0002,2]
[380099078,1755541843349,-480.0,0.0002,2]
[380099079,1755541843360,-480.0,0.0002,2]
[380099080,1755541843370,-480.0,0.0002,2]
[380099081,1755541843380,-480.0,0.0002,2]
[380099082,1755541843495,-480.0,0.0002,2]
[380099083,1755541843538,-480.0,0.0002,2]
[380099084,1755541843548,-480.0,0.0002,2]
[380099085,1755541843558,-480.0,0.0002,2]
[380099086,1755541843567,-480.0,0.0002,2]
[380099087,1755541843577,-480.0,0.0002,2]
[380099088,1755541843585,-480.0,0.0002,2]
[380099089,1755541843594,-480.0,0.0002,2]
[380099090,1755541843604,-480.0,0.0002,2]
[380099091,1755541843615,-480.0,0.0002,2]
[380099092,1755541843624,-295.04343188,0.0002,2]
[380099093,1755541843633,-504.05,0.0002,2]
[380099094,1755541843643,-165.12824402,0.0002,2]
[380099095,1755541843653,-480.0,0.0002,2]
[380099096,1755541843662,-480.0,0.0002,2]
[380099097,1755541843672,-480.0,0.0002,2]
[380099098,1755541843681,-480.0,0.0002,2]
[380099099,1755541843690,-570.96,0.0002,2]
[380099100,1755541843699,-324.34,0.0002,2]
[380099101,1755541843709,-480.0,0.0002,2]
[380099102,1755541843718,-572.27,0.0002,2]
[380099103,1755541843727,-480.0,0.0002,2]
[380099104,1755541843736,-480.0,0.0002,2]
[380099105,1755541843745,-514.34,0.0002,2]
[380099106,1755541843756,-480.0,0.0002,2]
[380099107,1755541843765,-480.0,0.0002,2]
[380099108,1755541843774,-480.0,0.0002,2]
[380099109,1755541843784,-652.96,0.0002,2]
[380099110,1755541843794,-480.0,0.0002,2]
[380099111,1755541843803,-480.0,0.0002,2]
[380099112,1755541843812,-480.0,0.0002,2]
[380099113,1755541843821,-480.0,0.0002,2]
[380099114,1755541843830,-480.0,0.0002,2]
[380099115,1755541843840,-480.0,0.0002,2]
[380099116,1755541843849,-480.0,0.0002,2]
[380099117,1755541843860,-480.0,0.0002,2]
[380099118,1755541843869,-8394.39,0.0002,2]
[380099119,1755541843878,-480.0,0.0002,2]
[380099120,1755541843888,-480.0,0.0002,2]
[380099121,1755541843897,-480.0,0.0002,2]
[380099122,1755541843907,-480.0,0.0002,2]
[380099123,1755541843917,-2008.39358081,0.00020194,2]
[380099124,1755541843927,-1500.0,0.00020268,2]
[380099125,1755541843936,-480.0,0.00020273,2]
[380099126,1755541843945,-170.84,0.00020273,2]
[380099127,1755541843953,-409.97,0.00020273,2]
[380099128,1755541843962,-480.0,0.00020273,2]
[380099129,1755541843972,-324.83,0.00020273,2]
[380099130,1755541843981,-480.0,0.00020273,2]
[380099131,1755541843991,-480.0,0.00020273,2]
[380099132,1755541844001,-480.0,0.00020273,2]
[380099133,1755541844011,-297.91,0.00020273,2]
[380099134,1755541844020,-480.0,0.00020273,2]
[380099135,1755541844029,-480.0,0.00020273,2]
[380099136,1755541844039,-480.0,0.00020273,2]
[380099137,1755541844048,-480.0,0.00020273,2]
[380099138,1755541844057,-480.0,0.00020273,2]
[380099139,1755541844066,-480.0,0.00020273,2]
[380099140,1755541844076,-480.0,0.00020273,2]
[380099141,1755541844086,-381.8,0.00020273,2]
[380099142,1755541844096,-480.0,0.00020273,2]
[380099143,1755541844108,-480.0,0.00020273,2]
[380099144,1755541844120,-504.05,0.00020273,2]
[380099145,1755541844133,-480.0,0.00020273,2]
[380099146,1755541844143,-203.79,0.00020273,2]
[380099147,1755541844153,-480.0,0.00020273,2]
[380099148,1755541844163,-480.0,0.00020273,2]
[380099149,1755541844173,-570.96,0.00020273,2]
[380099150,1755541844188,-480.0,0.00020273,2]
[380099151,1755541844198,-572.27,0.00020273,2]
[380099152,1755541844208,-388.51,0.00020273,2]
[380099153,1755541844217,-480.0,0.00020273,2]
[380099154,1755541844227,-480.0,0.00020273,2]
[380099155,1755541844237,-480.0,0.00020273,2]
[380099156,1755541844248,-652.96,0.00020273,2]
[380099157,1755541844257,-480.0,0.00020273,2]
[380099158,1755541844267,-480.0,0.00020273,2]
[380099159,1755541844277,-480.0,0.00020273,2]
[380099160,1755541844287,-582.03,0.00020273,2]
[380099161,1755541844296,-480.0,0.00020273,2]
[380099162,1755541844307,-480.0,0.00020273,2]
[380099163,1755541844318,-518.82,0.00020273,2]
[380099164,1755541844328,-480.0,0.00020273,2]
[380099165,1755541844338,-8394.39,0.00020273,2]
[380099166,1755541844348,-480.0,0.00020273,2]
[380099167,1755541844357,-480.0,0.00020273,2]
[380099168,1755541844365,-480.0,0.00020273,2]
[380099169,1755541844374,-1000.0,0.00020521,2]
[380099170,1755541844385,-365.81400119,0.00020547,2]
[380099171,1755541844394,-480.0,0.00020547,2]
[380099172,1755541844403,-480.0,0.00020547,2]
[380099173,1755541844413,-480.0,0.00020547,2]
[380099174,1755541844422,-480.0,0.00020547,2]
[380099175,1755541844432,-480.0,0.00020547,2]
[380099176,1755541844441,-568.44518974,0.00020547,2]
[380099177,1755541844451,-480.0,0.00020547,2]
[380099178,1755541844460,-480.0,0.00020547,2]
[380099179,1755541844469,-480.0,0.00020547,2]
[380099180,1755541844479,-480.0,0.00020547,2]
[380099181,1755541844488,-480.0,0.00020547,2]
[380099182,1755541844497,-480.0,0.00020547,2]
[380099183,1755541844507,-480.0,0.00020547,2]
[380099184,1755541844516,-504.05,0.00020547,2]
[380099185,1755541844525,-480.0,0.00020547,2]
[380099186,1755541844535,-480.0,0.00020547,2]
[380099187,1755541844545,-480.0,0.00020547,2]
[380099188,1755541844555,-570.96,0.00020547,2]
[380099189,1755541844564,-480.0,0.00020547,2]
[380099190,1755541844573,-572.27,0.00020547,2]
[380099191,1755541844583,-423.96,0.00020547,2]
[380099192,1755541844592,-480.0,0.00020547,2]
[380099193,1755541844602,-287.12,0.00020547,2]
[380099194,1755541844611,-480.0,0.00020547,2]
[380099195,1755541844621,-652.96,0.00020547,2]
[380099196,1755541844631,-257.17,0.00020547,2]
[380099197,1755541844641,-480.0,0.00020547,2]
[380099198,1755541844651,-480.0,0.00020547,2]
[380099199,1755541844660,-480.0,0.00020547,2]
[380099200,1755541844670,-469.59662819,0.00020547,2]
[380099201,1755541844679,-8394.39,0.00020547,2]
[380099202,1755541844689,-480.0,0.00020547,2]
[380099203,1755541844699,-480.0,0.00020547,2]
[380099204,1755541844708,-480.0,0.00020547,2]
[380099205,1755541844719,-159.225112,0.00020548,2]
[380099206,1755541844728,-502.58,0.0002056,3]
[380099207,1755541844738,-17842.522448,0.00020585,2]
[380099208,1755541844748,-157.378031,0.00020602,2]
[380099209,1755541844758,-2000.0,0.00020816,2]
[380099210,1755541844767,-480.0,0.00020821,2]
[380099211,1755541844778,-480.0,0.00020821,2]
[380099212,1755541844788,-480.0,0.00020821,2]
[380099213,1755541844797,-480.0,0.00020821,2]
[380099214,1755541844807,-480.0,0.00020821,2]
[380099215,1755541844817,-480.0,0.00020821,2]
[380099216,1755541844827,-480.0,0.00020821,2]
[380099217,1755541844836,-480.0,0.00020821,2]
[380099218,1755541844846,-480.0,0.00020821,2]
[380099219,1755541844856,-480.0,0.00020821,2]
[380099220,1755541844868,-195.95714024,0.00020821,2]
[380099221,1755541844878,-504.05,0.00020821,2]
[380099222,1755541844888,-480.0,0.00020821,2]
[380099223,1755541844898,-480.0,0.00020821,2]
[380099224,1755541844907,-513.32,0.00020821,2]
[380099225,1755541844917,-570.96,0.00020821,2]
[380099226,1755541844926,-480.0,0.00020821,2]
[380099227,1755541844936,-572.27,0.00020821,2]
[380099228,1755541844945,-181.55348345,0.00020821,2]
[380099229,1755541844955,-652.96,0.00020821,2]
[380099230,1755541844965,-395.8,0.00020821,2]
[380099231,1755541844974,-480.0,0.00020821,2]
[380099232,1755541844984,-480.0,0.00020821,2]
[380099233,1755541844993,-480.0,0.00020821,2]
[380099234,1755541845003,-8394.39,0.00020821,2]
[380099235,1755541845012,-480.0,0.00020821,2]
[380099236,1755541845022,-480.0,0.00020821,2]
[380099237,1755541845031,-420.0,0.00020884,2]
[380099238,1755541845041,-398.81,0.00020896,2]
[380099239,1755541845051,-1942.28339133,0.00021,5]
[380099240,1755541845060,-1205.26409376,0.00021,2]
[380099241,1755541845069,-203.11555608,0.00021,2]
[380099242,1755541845079,-347.71742374,0.00021087,2]
[380099243,1755541845089,-347.71742374,0.00021087,2]
[380099244,1755541845098,-176.28,0.00021095,2]
[380099245,1755541845108,-307.44310314,0.00021095,2]
[380099246,1755541845119,-384.44051717,0.00021095,2]
[380099247,1755541845131,-480.0,0.00021095,2]
[380099248,1755541845141,-480.0,0.00021095,2]
[380099249,1755541845150,-276.44209925,0.00021095,2]
[380099251,1755541845162,-480.0,0.00021095,2]
[380099252,1755541845171,-480.0,0.00021095,2]
[380099253,1755541845181,-480.0,0.00021095,2]
[380099254,1755541845191,-480.0,0.00021095,2]
[380099255,1755541845201,-504.05,0.00021095,2]
[380099256,1755541845210,-480.0,0.00021095,2]
[380099257,1755541845220,-480.0,0.00021095,2]
[380099258,1755541845230,-570.96,0.00021095,2]
[380099259,1755541845239,-480.0,0.00021095,2]
[380099260,1755541845249,-572.27,0.00021095,2]
[380099261,1755541845258,-652.96,0.00021095,2]
[380099262,1755541845268,-480.0,0.00021095,2]
[380099263,1755541845277,-480.0,0.00021095,2]
[380099264,1755541845287,-480.0,0.00021095,2]
[380099265,1755541845297,-8394.39,0.00021095,2]
[380099266,1755541845307,-480.0,0.00021095,2]
[380099267,1755541845316,-480.0,0.00021095,2]
[380099268,1755541845327,-972.0,0.00021221,2]
[380099269,1755541845337,-2153.0,0.00021221,2]
[380099270,1755541845347,-637.0,0.00021221,2]
[380099271,1755541845356,-408.0,0.00021221,2]
[380099272,1755541845367,-2008.39358081,0.00021309,2]
[380099273,1755541845376,-709.38865674,0.00021364,2]
[380099274,1755541845385,-480.0,0.00021369,2]
[380099275,1755541845395,-480.0,0.00021369,2]
[380099276,1755541845405,-480.0,0.00021369,2]
[380099277,1755541845414,-480.0,0.00021369,2]
[380099278,1755541845423,-480.0,0.00021369,2]
[380099279,1755541845432,-480.0,0.00021369,2]
[380099280,1755541845442,-504.05,0.00021369,2]
[380099281,1755541845452,-480.0,0.00021369,2]
[380099282,1755541845461,-480.0,0.00021369,2]
[380099283,1755541845470,-570.96,0.00021369,2]
[380099284,1755541845479,-480.0,0.00021369,2]
[380099285,1755541845489,-572.27,0.00021369,2]
[380099286,1755541845498,-652.96,0.00021369,2]
[380099287,1755541845508,-480.0,0.00021369,2]
[380099288,1755541845518,-480.0,0.00021369,2]
[380099289,1755541845528,-480.0,0.00021369,2]
[380099290,1755541845538,-8394.39,0.00021369,2]
[380099291,1755541845548,-480.0,0.00021369,2]
[380099292,1755541845559,-480.0,0.00021369,2]
[380099294,1755541845570,-720.0,0.00021517,20]
[380099296,1755541845580,-158.0,0.00021616,5]
[380099298,1755541845591,-480.0,0.00021643,2]
[380099300,1755541845601,-480.0,0.00021643,2]
[380099302,1755541845612,-480.0,0.00021643,2]
[380099304,1755541845621,-480.0,0.00021643,2]
[380099306,1755541845631,-480.0,0.00021643,2]
[380099309,1755541845641,-480.0,0.00021643,2]
[380099312,1755541845651,-504.05,0.00021643,2]
[380099314,1755541845660,-480.0,0.00021643,2]
[380099316,1755541845670,-480.0,0.00021643,2]
[380099318,1755541845679,-570.96,0.00021643,2]
[380099320,1755541845689,-480.0,0.00021643,2]
[380099322,1755541845699,-572.27,0.00021643,2]
[380099324,1755541845708,-652.96,0.00021643,2]
[380099326,1755541845718,-480.0,0.00021643,2]
[380099328,1755541845727,-480.0,0.00021643,2]
[380099329,1755541845736,-480.0,0.00021643,2]
[380099330,1755541845746,-8394.39,0.00021643,2]
[380099331,1755541845756,-480.0,0.00021643,2]
[380099332,1755541845765,-480.0,0.00021643,2]
[380099333,1755541845775,-598.22,0.00021846,2]
[380099334,1755541845784,-480.0,0.00021917,2]
[380099335,1755541845794,-480.0,0.00021917,2]
[380099336,1755541845803,-480.0,0.00021917,2]
[380099337,1755541845813,-480.0,0.00021917,2]
[380099338,1755541845823,-480.0,0.00021917,2]
[380099339,1755541845832,-480.0,0.00021917,2]
[380099340,1755541845842,-504.05,0.00021917,2]
[380099341,1755541845851,-480.0,0.00021917,2]
[380099342,1755541845862,-480.0,0.00021917,2]
[380099343,1755541845871,-570.96,0.00021917,2]
[380099344,1755541845880,-480.0,0.00021917,2]
[380099345,1755541845889,-572.27,0.00021917,2]
[380099346,1755541845898,-652.96,0.00021917,2]
[380099347,1755541845908,-480.0,0.00021917,2]
[380099349,1755541845917,-480.0,0.00021917,2]
[380099350,1755541845927,-480.0,0.00021917,2]
[380099351,1755541845936,-8394.39,0.00021917,2]
[380099352,1755541845945,-480.0,0.00021917,2]
[380099353,1755541845955,-480.0,0.00021917,2]
[380099354,1755541845964,-500.0,0.00021923,2]
[380099355,1755541845973,-500.0,0.00021923,2]
[380099356,1755541845982,-505.54523782,0.00021973,2]
[380099357,1755541845991,-649.03,0.00022,7]
[380099358,1755541846001,-2234.58,0.00022,7]
[380099359,1755541846010,-7023.86,0.00022,7]
[380099360,1755541846019,-12683.78573522,0.00022,7]
[380099361,1755541846028,-14750.11,0.00022,2]
[380099362,1755541846037,-417.15472785,0.00022,7]
[380099363,1755541846047,-215.75323784,0.00022,7]
[380099364,1755541846056,-375.82681177,0.00022,7]
[380099365,1755541846065,-160.0,0.00022,7]
[380099366,1755541846074,-565.533,0.00022129,2]
[380099367,1755541846083,-480.0,0.00022191,2]
[380099368,1755541846092,-480.0,0.00022191,2]
[380099369,1755541846101,-480.0,0.00022191,2]
[380099370,1755541846113,-486.73199278,0.00022191,2]
[380099371,1755541846124,-480.0,0.00022191,2]